bitfinex/quotes_BTCUSD_20250526
["timestamp","ask_amount","ask_price","bid_price","bid_amount"]
[1748220717629,0.04205014,109050.0,109040.0,0.02751182]
[1748220717765,0.62722348,109050.0,109040.0,0.02751182]
[1748220717963,1.24010952,109050.0,109040.0,0.02751182]
[1748220718540,1.25385246,109050.0,109040.0,0.02751182]
[1748220718766,1.25685229,109050.0,109040.0,0.02751182]
[1748220719176,1.26602222,109050.0,109040.0,0.02751182]
[1748220719386,1.45859434,109050.0,109040.0,0.01834147]
[1748220719607,0.23386021,109040.0,109030.0,0.0801717]
[1748220719814,0.23386021,109040.0,109030.0,0.071]
[1748220719815,0.8830331,109040.0,109030.0,0.071]
[1748220720017,0.8830331,109040.0,109030.0,0.01017161]
[1748220720247,0.8830331,109040.0,109030.0,0.001]
[1748220720423,0.8830331,109040.0,109030.0,0.01017178]
[1748220720673,0.69044332,109040.0,109030.0,0.02851475]
[1748220720905,0.69044332,109040.0,109030.0,0.03768594]
[1748220720906,0.55525691,109040.0,109030.0,0.03768594]
[1748220721337,0.57942709,109040.0,109030.0,0.03768594]
[1748220721763,0.56442709,109040.0,109030.0,0.03768594]
[1748220721937,0.49363395,109040.0,109030.0,0.03768594]
[1748220722211,0.001,109040.0,109030.0,0.03768594]
[1748220722422,0.49363395,109040.0,109030.0,0.03768594]
[1748220724968,0.50280413,109040.0,109030.0,0.03768594]
[1748220725386,0.50280413,109040.0,109030.0,0.10768594]
[1748220726013,0.49363395,109040.0,109030.0,0.10768594]
[1748220726542,0.50280413,109040.0,109030.0,0.10768594]
[1748220729232,0.52114492,109040.0,109030.0,0.10768594]
[1748220729443,0.55224492,109040.0,109030.0,0.10768594]
[1748220729992,0.5430744,109040.0,109030.0,0.10768594]
[1748220730547,0.55224484,109040.0,109030.0,0.10768594]
[1748220731947,0.56141545,109040.0,109030.0,0.10768594]
[1748220733464,0.74483437,109040.0,109030.0,0.08017178]
[1748220733651,0.74483505,109040.0,109030.0,0.08934331]
[1748220733990,0.74483505,109040.0,109030.0,0.09851476]
[1748220734190,0.74483505,109040.0,109030.0,0.10768612]
[1748220734817,0.54307466,109040.0,109030.0,0.11685681]
[1748220735001,0.49363395,109040.0,109030.0,0.11685681]
[1748220735346,0.001,109040.0,109030.0,0.11685681]
[1748220736155,0.001,109040.0,109030.0,0.14855681]
[1748220736382,0.00386611,109040.0,109030.0,0.14855681]
[1748220738195,0.001,109040.0,109030.0,0.14855681]
[1748220738697,0.03235334,109060.0,109050.0,0.02750929]
[1748220738928,0.03235334,109060.0,109050.0,0.63581416]
[1748220739149,0.03235334,109060.0,109050.0,0.63467485]
[1748220740017,0.03240312,109060.0,109050.0,0.48815485]
[1748220740220,0.03240312,109060.0,109050.0,0.79615485]
[1748220740843,0.03240312,109060.0,109050.0,0.8106957]
[1748220740995,0.08343719,109090.0,109080.0,0.05940172]
[1748220741194,0.08348705,109090.0,109080.0,0.79678728]
[1748220741766,4.986e-05,109090.0,109080.0,0.82425728]
[1748220742276,4.986e-05,109090.0,109080.0,1.15235789]
[1748220742880,4.986e-05,109090.0,109080.0,1.18125756]
[1748220743645,4.986e-05,109090.0,109080.0,1.20591984]
[1748220743846,4.986e-05,109090.0,109080.0,1.18102017]
[1748220744415,4.986e-05,109090.0,109080.0,1.18302017]
[1748220744565,4.986e-05,109090.0,109080.0,1.15835789]
[1748220744767,0.07748705,109100.0,109090.0,0.3994992]
[1748220744967,0.07798567,109100.0,109090.0,0.48904476]
[1748220745771,0.07798567,109100.0,109090.0,0.50344595]
[1748220746034,0.07898567,109100.0,109090.0,0.50344595]
[1748220746586,0.00149862,109100.0,109090.0,0.50344595]
[1748220747005,0.00149862,109100.0,109090.0,0.50544595]
[1748220750134,0.00149862,109100.0,109090.0,0.51622264]
[1748220752190,0.00149862,109100.0,109090.0,0.87836349]
[1748220752400,0.00149862,109100.0,109090.0,1.01182201]
[1748220752611,0.01886323,109160.0,109150.0,0.02748409]
[1748220752809,4.986e-05,109160.0,109150.0,0.42466965]
[1748220753216,0.01654986,109160.0,109150.0,0.33512409]
[1748220753931,4.986e-05,109160.0,109150.0,0.02748409]
[1748220754078,4.986e-05,109160.0,109150.0,0.76462965]
[1748220754277,0.00304986,109160.0,109150.0,0.76462965]
[1748220755734,0.00304986,109160.0,109150.0,0.61822965]
[1748220755935,0.00304986,109160.0,109150.0,0.76462965]
[1748220756085,0.00104986,109160.0,109150.0,0.76462965]
[1748220757122,0.00104986,109160.0,109150.0,0.76458965]
[1748220759088,0.00104986,109160.0,109150.0,0.45702965]
[1748220759268,0.50978381,109160.0,109150.0,0.76458965]
[1748220759480,0.01714986,109160.0,109150.0,0.45702965]
[1748220759684,0.00104986,109160.0,109150.0,0.76458965]
[1748220760671,0.01634986,109160.0,109150.0,0.45702965]
[1748220760874,0.01634986,109160.0,109150.0,0.76454965]
[1748220761075,0.01634986,109160.0,109150.0,0.45702965]
[1748220761280,0.01634986,109160.0,109150.0,0.76454965]
[1748220761487,0.01634986,109160.0,109150.0,0.45702965]
[1748220761691,0.00104986,109160.0,109150.0,0.76454965]
[1748220762448,0.00104986,109160.0,109150.0,0.79514965]
[1748220763516,0.004,109180.0,109170.0,0.05997906]
[1748220763733,0.004,109180.0,109170.0,0.29588462]
[1748220764969,0.004,109180.0,109170.0,0.96516462]
[1748220765172,0.004,109180.0,109170.0,0.97590519]
[1748220765383,0.004,109180.0,109170.0,0.78482982]
[1748220765578,0.004,109180.0,109170.0,0.81230888]
[1748220766139,0.004,109180.0,109170.0,0.81330888]
[1748220766352,0.004,109180.0,109170.0,0.84045452]
[1748220766919,8.04964998,109200.0,109190.0,0.0263173]
[1748220767124,8.04979947,109200.0,109190.0,0.47324259]
[1748220767325,8.04979947,109200.0,109190.0,0.4474485]
[1748220767486,8.04979947,109200.0,109190.0,0.47211078]
[1748220767701,8.04979947,109200.0,109190.0,0.4474485]
[1748220767911,8.04979947,109200.0,109190.0,0.47211078]
[1748220768226,8.04979947,109200.0,109190.0,0.17542573]
[1748220768539,8.07358216,109200.0,109190.0,0.12661781]
[1748220768973,8.07358216,109200.0,109190.0,0.43401781]
[1748220769541,8.08928216,109200.0,109190.0,0.43401781]
[1748220769761,8.09028216,109200.0,109190.0,0.28769781]
[1748220769973,8.09028216,109200.0,109190.0,0.77401781]
[1748220770375,8.08179947,109200.0,109190.0,0.77401781]
[1748220770680,8.08179947,109200.0,109190.0,0.76326286]
[1748220771242,8.06609947,109200.0,109190.0,0.76326286]
[1748220771646,8.05079947,109200.0,109190.0,0.76326286]
[1748220772063,8.05079947,109200.0,109190.0,0.77401781]
[1748220772841,8.05079947,109200.0,109190.0,0.79816345]
[1748220773042,8.05079947,109200.0,109190.0,0.82282573]
[1748220773367,8.04979947,109200.0,109190.0,0.84742573]
[1748220773793,8.04979947,109200.0,109190.0,0.82476345]
[1748220773969,8.04979947,109200.0,109190.0,0.81992926]
[1748220774116,8.04979947,109200.0,109190.0,0.85299154]
[1748220774574,8.04979947,109200.0,109190.0,1.14287011]
[1748220774781,8.04979947,109200.0,109190.0,1.16753239]
[1748220775159,8.04979947,109200.0,109190.0,1.19496839]
[1748220775866,8.04979947,109200.0,109190.0,1.19796839]
[1748220776503,8.04979947,109200.0,109190.0,1.19596839]
[1748220776858,8.04979947,109200.0,109190.0,1.18564763]
[1748220777675,8.04979947,109200.0,109190.0,1.16098535]
[1748220778382,8.04979947,109200.0,109190.0,0.82943971]
[1748220778602,8.04979947,109200.0,109190.0,1.88368948]
[1748220778603,8.0188688,109200.0,109190.0,1.88368948]
[1748220778806,6.1056394,109200.0,109190.0,1.88368948]
[1748220779026,6.0996394,109200.0,109190.0,1.24444987]
[1748220779434,6.0996394,109200.0,109190.0,1.24144987]
[1748220779846,6.0996394,109200.0,109190.0,0.96391215]
[1748220780036,6.0996394,109200.0,109190.0,1.28011215]
[1748220780425,6.0996394,109200.0,109190.0,1.27111215]
[1748220780757,6.0996394,109200.0,109190.0,1.24213248]
[1748220780929,6.0996394,109200.0,109190.0,1.24370223]
[1748220781348,5.60748304,109200.0,109190.0,1.24370223]
[1748220781505,5.57226566,109200.0,109190.0,2.64761895]
[1748220781705,5.3467338,109200.0,109190.0,2.67228123]
[1748220781911,5.27702211,109200.0,109190.0,2.78028123]
[1748220782350,5.27702211,109200.0,109190.0,2.78128123]
[1748220782566,5.24394107,109200.0,109190.0,2.78128123]
[1748220782711,5.2242082,109200.0,109190.0,2.77328123]
[1748220782915,5.2242082,109200.0,109190.0,2.76161895]
[1748220783118,5.17658211,109200.0,109190.0,2.78405858]
[1748220783325,5.06619343,109200.0,109190.0,2.78405858]
[1748220783563,5.05141727,109200.0,109190.0,2.81205858]
[1748220783785,5.04600849,109200.0,109190.0,2.81205858]
[1748220784017,5.04600849,109200.0,109190.0,2.83305858]
[1748220784217,5.04600849,109200.0,109190.0,2.97815858]
[1748220784425,5.00896657,109200.0,109190.0,2.97815858]
[1748220784627,4.38237748,109200.0,109190.0,2.93715858]
[1748220784831,4.09744559,109200.0,109190.0,3.02810991]
[1748220784953,3.82154936,109200.0,109190.0,3.02810991]
[1748220785174,3.74701693,109200.0,109190.0,2.87300991]
[1748220785375,3.74225613,109200.0,109190.0,2.86200991]
[1748220785731,3.73494796,109200.0,109190.0,3.02711274]
[1748220786093,3.73494796,109200.0,109190.0,3.01811274]
[1748220786094,3.72163979,109200.0,109190.0,3.01811274]
[1748220786294,3.72163979,109200.0,109190.0,2.97712141]
[1748220786496,3.72163979,109200.0,109190.0,2.98712141]
[1748220786701,3.72163979,109200.0,109190.0,2.83495871]
[1748220787052,3.72163979,109200.0,109190.0,2.62791871]
[1748220787362,3.72163979,109200.0,109190.0,1.89139743]
[1748220787486,3.72163979,109200.0,109190.0,1.18053511]
[1748220787708,3.72163979,109200.0,109190.0,0.94258256]
[1748220787912,3.72163979,109200.0,109190.0,1.67381931]
[1748220788114,3.71073935,109200.0,109190.0,1.67381931]
[1748220788336,3.71073935,109200.0,109190.0,1.66181931]
[1748220788872,3.71073935,109200.0,109190.0,1.67181931]
[1748220789074,3.71073935,109200.0,109190.0,1.64752359]
[1748220789309,3.71073935,109200.0,109190.0,1.62752359]
[1748220789464,3.71073935,109200.0,109190.0,1.65306444]
[1748220789662,3.71073935,109200.0,109190.0,1.68636016]
[1748220789874,3.71073935,109200.0,109190.0,1.42999283]
[1748220790070,3.71073935,109200.0,109190.0,1.42129711]
[1748220790644,3.71073935,109200.0,109190.0,1.44559283]
[1748220790880,3.71073935,109200.0,109190.0,1.13855283]
[1748220791085,3.71073935,109200.0,109190.0,1.44559283]
[1748220793202,3.70473935,109200.0,109190.0,1.53582644]
[1748220793355,3.70473935,109200.0,109190.0,1.56012216]
[1748220793533,3.70473935,109200.0,109190.0,0.94308216]
[1748220793737,3.70473935,109200.0,109190.0,1.45814344]
[1748220794524,3.70473935,109200.0,109190.0,1.48243916]
[1748220794976,3.70473935,109200.0,109190.0,1.45814344]
[1748220795190,3.70473935,109200.0,109190.0,1.48243916]
[1748220795725,3.70473935,109200.0,109190.0,1.15110344]
[1748220795884,3.70473935,109200.0,109190.0,1.45814344]
[1748220797416,3.70473935,109200.0,109190.0,0.94958744]
[1748220797641,3.70573935,109200.0,109190.0,1.22148659]
[1748220797901,3.74343935,109200.0,109190.0,0.32528659]
[1748220798128,3.79343935,109200.0,109190.0,0.47280477]
[1748220798350,3.74343935,109200.0,109190.0,0.16576477]
[1748220798565,3.74343935,109200.0,109190.0,0.46180477]
[1748220798812,3.74343935,109200.0,109190.0,0.47180477]
[1748220799047,4.20380693,109200.0,109190.0,0.47080477]
[1748220799240,4.20380693,109200.0,109190.0,0.14476477]
[1748220799480,4.20380693,109200.0,109190.0,0.06021921]
[1748220799691,0.05,109190.0,109180.0,0.33975059]
[1748220799895,0.13313627,109190.0,109180.0,0.03271059]
[1748220800146,0.13313609,109190.0,109180.0,0.03271059]
[1748220800349,0.12197817,109190.0,109180.0,0.0183171]
[1748220800578,0.05,109170.0,109150.0,0.01671921]
[1748220800785,0.0735,109160.0,109150.0,0.18124168]
[1748220801231,0.0235,109160.0,109150.0,0.16452247]
[1748220801454,0.0235,109160.0,109150.0,0.16565661]
[1748220801678,0.0235,109160.0,109150.0,0.25520219]
[1748220801903,0.047,109160.0,109150.0,0.25506803]
[1748220802130,0.0705,109160.0,109150.0,0.10804731]
[1748220802363,0.53086758,109160.0,109150.0,0.01850175]
[1748220802583,0.49302777,109160.0,109150.0,0.01750175]
[1748220803094,0.48586758,109160.0,109150.0,0.01750175]
[1748220803354,0.49916758,109160.0,109150.0,0.01750175]
[1748220803839,0.50716758,109160.0,109150.0,0.01850175]
[1748220804088,0.0478,109160.0,109150.0,0.01850175]
[1748220804336,0.50816758,109160.0,109150.0,0.01850175]
[1748220804543,0.50716758,109160.0,109150.0,0.01850175]
[1748220804743,0.51116758,109160.0,109150.0,0.01850175]
[1748220804977,0.51116758,109160.0,109150.0,0.10804731]
[1748220805221,0.0978,109160.0,109150.0,0.10804731]
[1748220805435,0.0978,109160.0,109150.0,0.25432731]
[1748220807282,0.012,109160.0,109150.0,0.25432731]
[1748220807459,0.012,109160.0,109150.0,1.00788583]
[1748220807661,0.012,109160.0,109150.0,1.59105968]
[1748220807874,0.012,109160.0,109150.0,1.6153554]
[1748220808092,0.012,109160.0,109150.0,1.6203554]
[1748220808284,0.008,109160.0,109150.0,1.59605968]
[1748220809444,3.70458986,109200.0,109190.0,0.34]
[1748220809596,3.70473935,109200.0,109190.0,0.73782556]
[1748220810197,3.70473935,109200.0,109190.0,0.76526356]
[1748220811047,3.70573935,109200.0,109190.0,0.76526356]
[1748220811452,3.70973935,109200.0,109190.0,0.76526356]
[1748220811694,3.70973935,109200.0,109190.0,0.79273759]
[1748220814123,3.45973935,109200.0,109190.0,0.79273759]
[1748220814533,3.53073935,109200.0,109190.0,0.76521959]
[1748220814674,3.55363935,109200.0,109190.0,0.42521959]
[1748220815028,3.53073935,109200.0,109190.0,0.42521959]
[1748220815272,3.50673935,109200.0,109190.0,0.42521959]
[1748220815521,3.45973935,109200.0,109190.0,0.76521959]
[1748220816177,3.45873935,109200.0,109190.0,0.76521959]
[1748220816343,3.45473935,109200.0,109190.0,0.76521959]
[1748220816539,3.45773935,109200.0,109190.0,0.45701959]
[1748220816746,3.50473935,109200.0,109190.0,0.11701959]
[1748220816949,3.50293935,109200.0,109190.0,0.33567403]
[1748220817148,3.96330693,109200.0,109190.0,0.02747403]
[1748220817564,3.97784778,109200.0,109190.0,0.02747403]
[1748220818235,3.98700461,109200.0,109190.0,0.02747403]
[1748220818441,3.98700453,109200.0,109190.0,0.02747403]
[1748220818676,3.97784778,109200.0,109190.0,0.02747403]
[1748220819100,3.97484778,109200.0,109190.0,0.02747403]
[1748220819277,3.97784778,109200.0,109190.0,0.02747403]
[1748220819495,3.97884778,109200.0,109190.0,0.02747403]
[1748220819844,3.99716153,109200.0,109190.0,0.01831635]
[1748220819979,4.19046879,109200.0,109190.0,0.01831643]
[1748220820182,4.19046879,109200.0,109190.0,0.02747427]
[1748220820401,4.19962613,109200.0,109190.0,0.01831643]
[1748220820612,4.19046896,109200.0,109190.0,0.03663236]
[1748220820813,4.33039221,109200.0,109190.0,0.00915826]
[1748220820986,4.34870604,109200.0,109190.0,0.02747436]
[1748220821555,4.14724153,109200.0,109190.0,0.03663221]
[1748220821740,4.33954888,109200.0,109190.0,0.03663229]
[1748220821999,4.12892778,109200.0,109190.0,0.04579005]
[1748220822207,0.51752441,109200.0,109190.0,0.04579005]
[1748220822445,0.70983167,109200.0,109190.0,0.03663229]
[1748220822667,0.71183167,109200.0,109190.0,0.03663229]
[1748220825314,0.52352441,109200.0,109190.0,0.02747395]
[1748220825524,0.53268149,109200.0,109190.0,0.02747395]
[1748220825732,0.53268141,109200.0,109190.0,0.02747395]
[1748220825932,0.53268133,109200.0,109190.0,0.02747395]
[1748220827578,0.52352441,109200.0,109190.0,0.02747395]
[1748220827888,0.51436758,109200.0,109190.0,0.02747395]
[1748220829605,0.053,109200.0,109190.0,0.42629951]
[1748220829806,0.053,109200.0,109190.0,0.76629951]
[1748220830129,0.006,109200.0,109190.0,0.42629951]
[1748220831315,0.004,109200.0,109190.0,0.42629951]
[1748220831517,0.04387666,109220.0,109210.0,0.02746899]
[1748220831738,0.50760383,109220.0,109210.0,0.02746899]
[1748220831943,0.0483,109210.0,109200.0,0.02747066]
[1748220832144,0.51782357,109210.0,109200.0,0.02747066]
[1748220832344,0.51782366,109210.0,109200.0,0.02747066]
[1748220832550,0.07377116,109200.0,109190.0,0.01015809]
[1748220832761,0.07663343,109200.0,109190.0,0.03763219]
[1748220832967,0.08579077,109200.0,109190.0,0.04678995]
[1748220833307,0.0583191,109200.0,109190.0,0.04678995]
[1748220833507,0.04916227,109200.0,109190.0,0.04678995]
[1748220834366,0.05831902,109200.0,109190.0,0.04678995]
[1748220835278,0.05016227,109200.0,109190.0,0.04778995]
[1748220835638,0.04916227,109200.0,109190.0,0.04778995]
[1748220835774,0.05116227,109200.0,109190.0,0.04678995]
[1748220835993,0.0603191,109200.0,109190.0,0.04678995]
[1748220836201,0.0613191,109200.0,109190.0,0.04678995]
[1748220837451,0.05216227,109200.0,109190.0,0.04678995]
[1748220838170,0.0613191,109200.0,109190.0,0.04678995]
[1748220838362,0.05216227,109200.0,109190.0,0.04678995]
[1748220838548,0.0613191,109200.0,109190.0,0.04678995]
[1748220839556,0.0704761,109200.0,109190.0,0.04678995]
[1748220840131,0.08879052,109200.0,109190.0,0.04678995]
[1748220840346,0.36687013,109200.0,109190.0,0.01015826]
[1748220840517,0.36400801,109200.0,109190.0,0.02847436]
[1748220840942,0.35485101,109200.0,109190.0,0.001]
[1748220841511,0.69485101,109200.0,109190.0,0.001]
[1748220842097,0.81521859,109200.0,109190.0,0.01015834]
[1748220842518,0.01831895,109170.0,109160.0,0.01832063]
[1748220842724,0.01831895,109170.0,109150.0,0.01442053]
[1748220842725,0.03296036,109160.0,109150.0,0.01442053]
[1748220842929,0.06918419,109160.0,109150.0,0.04190429]
[1748220843098,0.06918377,109160.0,109150.0,0.04190429]
[1748220843485,0.16788985,109160.0,109150.0,0.05106615]
[1748220843684,0.36564799,109160.0,109150.0,0.02358223]
[1748220843847,0.36564799,109160.0,109150.0,0.03289325]
[1748220843848,0.82315327,109160.0,109150.0,0.03289325]
[1748220844055,0.047,109140.0,109120.0,0.02860873]
[1748220844325,0.50846758,109130.0,109120.0,0.01837737]
[1748220844553,0.10787005,109140.0,109130.0,0.01832583]
[1748220844554,0.08954556,109140.0,109130.0,0.01832583]
[1748220844791,0.50286085,109160.0,109150.0,0.01832247]
[1748220844996,0.01832575,109130.0,109120.0,0.00921399]
[1748220845202,0.01832575,109130.0,109120.0,0.01837796]
[1748220845203,0.92942885,109130.0,109120.0,0.01837796]
[1748220845412,0.61255399,109130.0,109120.0,4.986e-05]
[1748220845653,0.81414714,109130.0,109120.0,0.00104986]
[1748220845862,0.81414782,109130.0,109120.0,0.00104986]
[1748220846273,0.047,109090.0,109080.0,0.02833423]
[1748220846475,0.05096477,109100.0,109090.0,0.02749896]
[1748220846685,0.51133235,109100.0,109090.0,0.02749896]
[1748220846886,0.48436758,109100.0,109090.0,0.02749896]
[1748220847094,0.48436758,109100.0,109090.0,0.0359716]
[1748220847527,0.46036758,109100.0,109090.0,0.0359716]
[1748220847734,0.47415416,109110.0,109100.0,0.02749668]
[1748220847940,0.49825416,109110.0,109100.0,0.02749668]
[1748220848141,0.52225416,109110.0,109100.0,0.02749668]
[1748220848366,0.49815416,109110.0,109100.0,0.18937668]
[1748220848667,0.47415416,109110.0,109100.0,0.18937668]
[1748220848858,0.46036758,109110.0,109100.0,0.18937668]
[1748220849188,0.46236758,109110.0,109100.0,0.18937668]
[1748220849413,0.46236758,109110.0,109100.0,0.02749668]
[1748220849619,0.46236758,109110.0,109100.0,0.33569668]
[1748220850472,0.46236758,109110.0,109100.0,0.47414224]
[1748220850473,0.002,109110.0,109100.0,0.47414224]
[1748220851154,0.049,109110.0,109100.0,0.47414224]
[1748220851604,0.002,109110.0,109100.0,1.14342224]
[1748220851808,0.003,109110.0,109100.0,1.14342224]
[1748220852480,0.002,109110.0,109100.0,1.14342224]
[1748220852683,0.0092132,109140.0,109130.0,0.02748912]
[1748220852927,0.00936248,109140.0,109130.0,0.33572912]
[1748220853149,0.00014928,109140.0,109130.0,0.33572912]
[1748220853811,0.00936431,109140.0,109130.0,0.33572912]
[1748220854229,0.01222787,109140.0,109130.0,0.33572912]
[1748220854602,0.02889661,109140.0,109130.0,0.33572912]
[1748220854991,0.01517471,109140.0,109130.0,0.43572912]
[1748220855194,0.01817462,109140.0,109130.0,0.43572912]
[1748220855396,0.00901284,109140.0,109130.0,0.43572912]
[1748220855754,0.00901284,109140.0,109130.0,0.28936912]
[1748220856321,0.00901284,109140.0,109130.0,0.28940912]
[1748220856522,0.00901284,109140.0,109130.0,0.12748912]
[1748220856888,0.01817462,109140.0,109130.0,0.28940912]
[1748220857305,0.00901284,109140.0,109130.0,0.12748912]
[1748220857687,0.00901284,109140.0,109130.0,0.28940912]
[1748220858116,0.00901284,109140.0,109130.0,0.28785238]
[1748220858317,0.01797947,109140.0,109130.0,0.28785238]
[1748220858739,0.0316166,109140.0,109130.0,0.28785238]
[1748220859176,0.04077838,109140.0,109130.0,0.28785238]
[1748220859509,0.01797947,109140.0,109130.0,0.28785238]
[1748220859716,0.00614928,109140.0,109130.0,0.43089794]
[1748220860323,0.0155274,109140.0,109130.0,0.52375794]
[1748220860459,0.00614928,109140.0,109130.0,0.52375794]
[1748220860660,0.00314928,109140.0,109130.0,0.52375794]
[1748220861135,0.00014928,109140.0,109130.0,0.52375794]
[1748220861595,0.00943209,109140.0,109130.0,0.12593238]
[1748220861800,0.48812366,109140.0,109130.0,0.12593238]
[1748220862004,0.47884076,109140.0,109130.0,0.12593238]
[1748220862179,0.46051686,109140.0,109130.0,0.12593238]
[1748220862409,0.57754844,109140.0,109130.0,0.11832642]
[1748220862612,0.61831073,109140.0,109130.0,0.13665225]
[1748220862806,0.59998624,109140.0,109130.0,0.13665225]
[1748220863004,0.64581056,109140.0,109130.0,0.13665225]
[1748220863207,0.6183242,109140.0,109130.0,0.13665225]
[1748220863557,0.62748615,109140.0,109130.0,0.13665225]
[1748220863991,0.6377168,109140.0,109130.0,0.13665225]
[1748220864205,0.63771672,109140.0,109130.0,0.13665225]
[1748220864623,0.57145477,109140.0,109130.0,0.13665225]
[1748220865041,0.58061672,109140.0,109130.0,0.13665225]
[1748220865259,0.58061664,109140.0,109130.0,0.13665225]
[1748220865488,0.01237985,109140.0,109130.0,0.13665225]
[1748220865926,0.01524346,109140.0,109130.0,0.13665225]
[1748220868012,0.48477299,109140.0,109130.0,0.13665225]
[1748220868220,0.52207141,109140.0,109130.0,0.14581521]
[1748220868448,0.55523353,109140.0,109130.0,0.14581521]
[1748220868827,0.56439582,109140.0,109130.0,0.14581521]
[1748220869285,0.54607141,109140.0,109130.0,0.14581521]
[1748220869720,0.53690938,109140.0,109130.0,0.14581521]
[1748220869965,0.06737985,109140.0,109130.0,0.14581521]
[1748220870199,0.53061113,109140.0,109130.0,0.14581521]
[1748220870415,0.53690938,109140.0,109130.0,0.14581521]
[1748220870638,0.5369093,109140.0,109130.0,0.14581521]
[1748220870874,0.8334087,109140.0,109130.0,0.1]
[1748220871101,1.1734092,109140.0,109130.0,0.1]
[1748220871961,1.1714092,109140.0,109130.0,0.1]
[1748220872317,1.1774092,109140.0,109130.0,0.1]
[1748220872533,1.3227692,109140.0,109130.0,0.1]
[1748220872759,1.41229071,109140.0,109130.0,0.1]
[1748220872962,1.3277692,109140.0,109130.0,0.1]
[1748220876238,1.1814092,109140.0,109130.0,0.1]
[1748220876439,1.3277692,109140.0,109130.0,0.1]
[1748220880612,1.3278092,109140.0,109130.0,0.1]
[1748220883117,0.47362813,109140.0,109130.0,0.1366525]
[1748220883237,0.9523202,109140.0,109130.0,0.1366525]
[1748220883435,0.91029299,109140.0,109130.0,0.1366525]
[1748220883739,0.91945477,109140.0,109130.0,0.1366525]
[1748220883951,0.94315757,109140.0,109130.0,0.1366525]
[1748220884543,0.95231969,109140.0,109130.0,0.1366525]
[1748220884987,0.94308912,109140.0,109130.0,0.1366525]
[1748220885164,0.95225149,109140.0,109130.0,0.1366525]
[1748220885366,0.94308912,109140.0,109130.0,0.1366525]
[1748220885711,0.95225132,109140.0,109130.0,0.1366525]
[1748220885841,0.96141369,109140.0,109130.0,0.1366525]
[1748220886551,0.95225132,109140.0,109130.0,0.1366525]
[1748220886927,0.47355942,109140.0,109130.0,0.1366525]
[1748220887103,0.60308912,109140.0,109130.0,0.1366525]
[1748220887342,0.61225141,109140.0,109130.0,0.1366525]
[1748220887667,0.61225149,109140.0,109130.0,0.1366525]
[1748220888282,0.61225141,109140.0,109130.0,0.1366525]
[1748220888734,0.79550228,109140.0,109130.0,0.1366525]
[1748220888896,0.80466549,109140.0,109130.0,0.1366525]
[1748220889099,0.61225208,109140.0,109130.0,0.1366525]
[1748220890576,0.80466549,109140.0,109130.0,0.1366525]
[1748220890795,0.62141462,109140.0,109130.0,0.1366525]
[1748220891045,0.61225208,109140.0,109130.0,0.1366525]
[1748220891254,1.14867888,109140.0,109130.0,0.1]
[1748220891482,1.18047888,109140.0,109130.0,0.1]
[1748220891708,1.32687888,109140.0,109130.0,0.1]
[1748220894226,1.32687888,109140.0,109130.0,0.11832625]
[1748220894377,1.32687888,109140.0,109130.0,0.11832634]
[1748220894781,1.31771659,109140.0,109130.0,0.10916321]
[1748220894983,0.01454085,109130.0,109100.0,0.25819214]
[1748220895184,0.09240991,109120.0,109100.0,0.25819214]
[1748220895388,0.00286435,109120.0,109110.0,0.03]
[1748220895585,0.01454085,109130.0,109110.0,0.03]
[1748220895801,0.10408641,109130.0,109110.0,0.03]
[1748220896680,0.12241208,109130.0,109110.0,0.03]
[1748220896902,0.00286424,109120.0,109110.0,0.031]
[1748220897571,0.00286424,109120.0,109110.0,0.032]
[1748220897933,0.00286424,109120.0,109110.0,0.031]
[1748220898123,0.00286424,109120.0,109110.0,0.032]
[1748220898559,0.00286424,109120.0,109110.0,0.0616]
[1748220898971,0.00386414,109120.0,109110.0,0.0616]
[1748220899189,0.001,109120.0,109110.0,0.0616]
[1748220899406,0.001,109120.0,109110.0,0.07992886]
[1748220902194,0.00386405,109120.0,109110.0,0.07992886]
[1748220902859,0.00386405,109120.0,109110.0,0.19572886]
[1748220903488,0.00386405,109120.0,109110.0,0.22582886]
[1748220905259,0.00386405,109120.0,109110.0,0.2403381]
[1748220905481,0.001,109120.0,109110.0,0.2403381]
[1748220906666,0.001,109120.0,109110.0,0.31537442]
[1748220907046,0.001,109120.0,109110.0,0.37537442]
[1748220907856,0.048,109120.0,109110.0,0.71537442]
[1748220910243,0.047,109120.0,109110.0,0.71537442]
[1748220910447,0.047,109120.0,109110.0,0.71637442]
[1748220910859,0.047,109120.0,109110.0,0.71537442]
[1748220911022,0.047,109120.0,109110.0,0.71637442]
[1748220911368,0.047,109120.0,109110.0,0.71537442]
[1748220911797,0.047,109120.0,109110.0,0.71637442]
[1748220912002,0.047,109120.0,109110.0,0.71537442]
[1748220912660,0.047,109120.0,109110.0,0.71637442]
[1748220915704,0.047,109120.0,109110.0,0.56997442]
[1748220915946,0.5007302,109130.0,109120.0,0.02749164]
[1748220916150,0.49156758,109130.0,109120.0,0.02749164]
[1748220916327,0.5007302,109130.0,109120.0,0.02749164]
[1748220917173,0.5007302,109130.0,109110.0,0.01451847]
[1748220917354,0.00286405,109120.0,109110.0,0.0328475]
[1748220918200,0.00286405,109120.0,109110.0,0.01832903]
[1748220919161,0.00286405,109120.0,109110.0,0.01932903]
[1748220920095,0.00286405,109120.0,109110.0,0.01832903]
[1748220920452,0.00386405,109120.0,109110.0,0.01832903]
[1748220920690,0.00486405,109120.0,109110.0,0.01832903]
[1748220922042,0.49679781,109120.0,109110.0,0.01832903]
[1748220922204,0.49393376,109120.0,109110.0,0.01832903]
[1748220925178,0.002,109120.0,109110.0,0.04782903]
[1748220925376,0.002,109120.0,109110.0,0.07882903]
[1748220926426,0.002,109120.0,109110.0,0.0933475]
[1748220927033,0.002,109120.0,109110.0,0.0623475]
[1748220927373,0.002,109120.0,109110.0,0.68217306]
[1748220928446,0.002,109120.0,109110.0,0.66765459]
[1748220929998,0.049,109120.0,109110.0,0.66765459]
[1748220930206,0.002,109120.0,109110.0,0.66765459]
[1748220930887,0.049,109120.0,109110.0,0.66765459]
[1748220931326,0.002,109120.0,109110.0,0.66765459]
[1748220931507,0.049,109120.0,109110.0,0.66765459]
[1748220933869,0.002,109120.0,109110.0,0.66765459]
[1748220934073,0.49393376,109120.0,109110.0,0.78505459]
[1748220934278,0.49393376,109120.0,109110.0,0.35832903]
[1748220934503,0.49393376,109120.0,109110.0,0.51960903]
[1748220934910,0.49393376,109120.0,109110.0,0.35832903]
[1748220935546,0.002,109120.0,109110.0,0.35832903]
[1748220935797,0.002,109120.0,109110.0,0.38742903]
[1748220936004,0.01380173,109120.0,109110.0,0.38742903]
[1748220936181,0.00486388,109120.0,109110.0,0.35832903]
[1748220936540,0.49679764,109120.0,109110.0,0.35832903]
[1748220936727,0.49393376,109120.0,109110.0,0.35832903]
[1748220937537,0.002,109120.0,109110.0,0.35832903]
[1748220937801,0.49393376,109120.0,109110.0,0.35832903]
[1748220939068,0.50316933,109120.0,109110.0,0.01832903]